bitfinex/quotes_SOLUSD_20240906
["timestamp","ask_amount","ask_price","bid_price","bid_amount"]
[1725593692439,52.5925,131.71,131.66,7.5949]
[1725593692642,45.0,131.71,131.67,7.5946]
[1725593693867,7.593,131.7,131.65,7.5957]
[1725593694290,45.0,131.69,131.65,7.5957]
[1725593694953,7.5942,131.68,131.62,7.5971]
[1725593695153,45.0,131.69,131.61,22.2927]
[1725593695970,52.5936,131.69,131.64,7.5963]
[1725593702268,45.0,131.69,131.59,56.9919]
[1725593702471,7.5963,131.65,131.6,7.5986]
[1725593702776,45.0,131.64,131.6,7.5986]
[1725593703073,41.63,131.7,131.61,18.995]
[1725593703277,7.5951,131.67,131.62,7.5974]
[1725593703483,45.0,131.66,131.62,7.5974]
[1725593704067,52.5953,131.66,131.61,26.593]
[1725593704479,41.63,131.7,131.62,1.5180039]
[1725593704669,7.5945,131.68,131.63,7.5969]
[1725593704974,45.0,131.67,131.64,1.51777327]
[1725593705976,45.0,131.67,131.63,9.11467327]
[1725593706191,7.5945,131.68,131.63,9.11467327]
[1725593706682,7.5945,131.68,131.63,7.5969]
[1725593712084,7.5954,131.66,131.61,26.593]
[1725593712293,22.6468,131.7,131.61,18.995]
[1725593712582,45.0,131.69,131.61,18.995]
[1725593713477,7.5948,131.67,131.62,7.5974]
[1725593713696,7.5942,131.68,131.62,7.5974]
[1725593715288,7.5949,131.67,131.62,7.5974]
[1725593715584,7.596,131.65,131.6,7.5982]
[1725593716158,45.0,131.64,131.6,7.5982]
[1725593716586,45.0,131.64,131.58,41.2917]
[1725593717383,52.5965,131.64,131.58,48.8911]
[1725593717567,52.5965,131.64,131.59,5.61265995]
[1725593717767,52.5965,131.64,131.58,48.8911]
[1725593717981,52.5965,131.64,131.59,5.61229949]
[1725593718187,52.5965,131.64,131.58,48.8911]
[1725593718372,52.5965,131.64,131.59,5.6143453]
[1725593718568,52.5965,131.64,131.58,48.8911]
[1725593718772,52.5965,131.64,131.59,5.61457886]
[1725593718967,7.5972,131.63,131.58,48.8911]
[1725593719582,45.0,131.62,131.58,26.5984]
[1725593719765,52.5977,131.62,131.57,7.6005]
[1725593719961,52.5977,131.62,131.58,5.61632529]
[1725593720177,7.5982,131.61,131.56,7.6009]
[1725593720468,7.5982,131.61,131.57,5.61752364]
[1725593720675,7.5982,131.61,131.56,7.6009]
[1725593720984,7.5982,131.61,131.57,5.6171212]
[1725593721214,7.5982,131.61,131.56,7.6009]
[1725593721572,7.5982,131.61,131.57,5.61712977]
[1725593721892,7.5982,131.61,131.56,7.6009]
[1725593722090,7.5982,131.61,131.57,5.61796808]
[1725593722390,7.5982,131.61,131.56,7.6009]
[1725593724589,7.5977,131.62,131.55,34.1699]
[1725593724772,7.5977,131.62,131.57,7.6005]
[1725593725871,45.0,131.61,131.57,7.6005]
[1725593729173,7.5977,131.62,131.57,7.6005]
[1725593730090,7.5977,131.62,131.58,7.5999]
[1725593731179,45.0,131.61,131.57,7.6004]
[1725593734489,52.5982,131.61,131.57,7.6004]
[1725593739708,22.9875,131.63,131.58,7.5998]
[1725593740005,7.5965,131.64,131.59,7.5991]
[1725593740588,7.5965,131.64,131.6,7.5986]
[1725593740789,13.6303,131.65,131.6,7.5986]
[1725593742409,52.5965,131.64,131.6,7.5986]
[1725593744915,7.5972,131.63,131.59,26.597]
[1725593745906,7.5976,131.62,131.59,18.9979]
[1725593746110,45.0,131.64,131.56,36.12536785]
[1725593746413,7.5983,131.61,131.57,5.61564398]
[1725593746594,7.5983,131.61,131.56,26.6025]
[1725593746796,7.5983,131.61,131.57,5.61588391]
[1725593746997,7.5983,131.61,131.56,26.6025]
[1725593747203,7.5983,131.61,131.57,5.61604398]
[1725593747517,7.5983,131.61,131.56,26.6025]
[1725593747711,7.5983,131.61,131.57,5.61600387]
[1725593747909,7.5983,131.61,131.56,26.6025]
[1725593748097,7.5983,131.61,131.57,5.6159698]
[1725593748415,7.5983,131.61,131.56,26.6025]
[1725593748600,7.5983,131.61,131.57,5.61602277]
[1725593748803,7.5983,131.61,131.56,26.6025]
[1725593749002,7.5978,131.62,131.57,13.21644195]
[1725593749217,7.5978,131.62,131.58,13.21518898]
[1725593749419,7.5978,131.62,131.58,7.5999]
[1725593753504,7.5986,131.61,131.56,19.0016]
[1725593753822,7.5986,131.61,131.57,5.61498449]
[1725593754002,7.5986,131.61,131.56,26.6022]
[1725593754815,7.5995,131.59,131.55,7.6014]
[1725593755224,7.5995,131.59,131.57,5.61537188]
[1725593756490,15.9054,131.62,131.57,5.61537188]
[1725593756696,7.5989,131.6,131.57,5.61537188]
[1725593760519,7.5989,131.6,131.58,5.61815871]
[1725593760728,7.5989,131.6,131.57,5.61537188]
[1725593761304,7.5989,131.6,131.58,5.61870798]
[1725593761505,7.5994,131.59,131.57,5.61537188]
[1725593761831,7.5994,131.59,131.58,5.61855045]
[1725593762022,52.5994,131.59,131.58,5.61855045]
[1725593762421,45.0,131.59,131.54,2.58027174]
[1725593762618,45.0,131.58,131.54,2.58027174]
[1725593763027,45.0,131.59,131.54,2.58027174]
[1725593764132,18.86483375,131.62,131.54,2.58027174]
[1725593764133,15.9054,131.62,131.54,21.58547174]
[1725593764443,7.5992,131.6,131.55,7.6012]
[1725593765213,7.5992,131.6,131.56,7.601]
[1725593768117,7.5983,131.61,131.56,7.601]
[1725593768332,52.5988,131.6,131.56,7.601]
[1725593768715,45.0,131.6,131.56,7.601]
[1725593770437,7.5983,131.61,131.56,7.601]
[1725593770941,7.5988,131.6,131.56,7.601]
[1725593772241,7.5983,131.61,131.56,7.601]
[1725593772418,7.5988,131.6,131.56,7.601]
[1725593772832,7.5988,131.6,131.55,7.6014]
[1725593778138,7.5982,131.61,131.56,19.0021]
[1725593778353,50.25817741,131.69,131.6,7.5986]
[1725593778354,7.5962,131.65,131.6,7.5986]
[1725593778809,7.5954,131.66,131.6,26.5945]
[1725593779015,7.5954,131.66,131.6,32.6085]
[1725593781742,45.0,131.65,131.6,32.6085]
[1725593782140,45.0,131.65,131.61,1.5193574]
[1725593783241,45.0,131.65,131.6,32.6085]
[1725593784142,7.5954,131.66,131.6,32.6085]
[1725593788450,7.5954,131.66,131.61,7.5981]
[1725593789060,19.10745097,131.69,131.6,25.0102]
[1725593789061,7.5959,131.65,131.6,32.6088]
[1725593794654,7.5967,131.64,131.59,7.5989]
[1725593794830,52.5972,131.63,131.58,7.5995]
[1725593795851,45.0,131.63,131.59,7.5993]
[1725593796151,7.5966,131.64,131.59,7.5993]
[1725593796855,7.5959,131.65,131.6,7.5987]
[1725593797160,23.4118,131.69,131.64,7.5963]
[1725593798244,7.593,131.7,131.65,7.5958]
[1725593808434,7.5936,131.69,131.65,7.5958]
[1725593809857,7.5942,131.68,131.63,26.5884]
[1725593810048,7.5948,131.67,131.63,18.9919]
[1725593810564,7.5953,131.66,131.61,421.0263]
[1725593813949,7.5953,131.66,131.62,7.5975]
[1725593815549,25.5596,131.7,131.62,7.5975]
[1725593815860,7.5943,131.68,131.62,18.9933]
[1725593817372,7.5943,131.68,131.64,7.5962]
[1725593819172,7.5943,131.68,131.63,7.5968]
[1725593819870,7.5948,131.67,131.63,7.5968]
[1725593821049,7.5955,131.66,131.62,18.9933]
[1725593823570,22.6851,131.67,131.62,26.5907]
[1725593830983,7.5954,131.66,131.62,26.5907]
[1725593832280,6.5767,131.7,131.62,18.9933]
[1725593832487,45.0,131.69,131.62,18.9933]
[1725593832684,7.5942,131.68,131.64,7.5961]
[1725593836491,7.5948,131.67,131.63,7.5969]
[1725593836869,7.5941,131.68,131.64,7.5963]
[1725593839877,15.0903,131.71,131.62,18.9933]
[1725593840188,7.5954,131.66,131.61,7.5976]
[1725593841485,7.5966,131.64,131.6,391.2]
[1725593841799,7.5966,131.64,131.6,398.7987]
[1725593842170,7.5959,131.65,131.61,7.598]
[1725593842396,80.0903,131.7,131.62,7.5971]
[1725593843090,7.5952,131.67,131.62,7.5971]
[1725593848692,7.5952,131.67,131.63,7.5968]
[1725593849081,7.5943,131.68,131.64,7.5964]
[1725593850208,7.5943,131.68,131.63,7.597]
[1725593851985,7.5947,131.67,131.63,7.597]
[1725593859918,7.5955,131.66,131.62,7.5974]
[1725593860126,34.0732,131.7,131.61,18.9949]
[1725593860127,7.5959,131.65,131.61,18.9949]
[1725593860291,7.5968,131.64,131.6,14.6712575]
[1725593860624,7.5968,131.64,131.6,22.2697575]
[1725593863709,18.986,131.68,131.61,7.5981]
[1725593863710,7.5959,131.65,131.61,7.5981]
[1725593865926,7.5959,131.65,131.6,14.6712575]
[1725593865927,7.5982,131.61,131.6,14.6712575]
[1725593866610,7.5982,131.61,131.56,30.3572]
[1725593869923,7.5989,131.6,131.56,24.0171]
[1725593871613,73.16203611,131.64,131.55,26.6047]
[1725593871819,7.5994,131.59,131.55,19.0031]
[1725593872608,18.9945,131.62,131.53,30.3594]
[1725593872925,7.6006,131.57,131.53,22.7567]
[1725593876223,7.6006,131.57,131.52,26.6109]
[1725593876627,60.5887,131.61,131.52,19.0077]
[1725593876628,7.6011,131.56,131.52,19.0077]
[1725593876927,7.6017,131.55,131.52,19.0077]
[1725593879033,7.6012,131.56,131.52,19.0077]
[1725593880626,7.6017,131.55,131.51,7.6038]
[1725593881231,45.0,131.54,131.47,21.5827]
[1725593881530,7.6037,131.52,131.48,7.6055]
[1725593882719,7.6029,131.53,131.48,7.6055]
[1725593884434,7.6029,131.53,131.49,7.6048]
[1725593884928,7.6029,131.53,131.48,26.6191]
[1725593885923,7.6035,131.52,131.48,26.6191]
[1725593888443,7.6035,131.52,131.48,19.0135]
[1725593891441,61.3806,131.51,131.47,391.2]
[1725593891736,7.6051,131.49,131.47,391.2]
[1725593892126,7.6045,131.5,131.47,391.2]
[1725593899241,7.6052,131.49,131.47,391.2]
[1725593906177,61.3806,131.51,131.42,26.631]
[1725593906364,20.0,131.5,131.42,19.022]
[1725593906564,45.0,131.49,131.42,19.022]
[1725593906875,7.6081,131.44,131.4,7.6101]
[1725593907259,45.0,131.43,131.39,27.4839274]
[1725593910166,7.6081,131.44,131.39,27.4839274]
[1725593910868,7.6081,131.44,131.4,7.6102]
[1725593911059,7.6081,131.44,131.4,9.13197423]
[1725593912645,7.6081,131.44,131.4,7.6102]
[1725593912847,7.6075,131.45,131.41,9.13054071]
[1725593913046,15.8449,131.46,131.42,9.12868347]
[1725593913362,23.4522,131.46,131.41,26.6333]
[1725593913945,7.6075,131.45,131.41,26.6333]
[1725593914573,7.6075,131.45,131.41,19.0237]
[1725593918377,52.6081,131.44,131.41,19.0237]
[1725593919379,52.6081,131.44,131.4,7.6101]
[1725593919549,7.6086,131.43,131.39,8.4580274]
[1725593919948,52.6081,131.44,131.39,8.4580274]
[1725593929770,7.6075,131.45,131.4,19.0254]
[1725593930387,7.6075,131.45,131.4,26.6355]
[1725593931587,7.6081,131.44,131.4,26.6355]
[1725593935192,15.8449,131.46,131.42,19.0223]
[1725593935394,15.8449,131.46,131.42,26.6313]
[1725593935692,7.6064,131.47,131.42,26.6313]
[1725593935903,20.0,131.46,131.42,26.6313]
[1725593938789,27.6072,131.46,131.42,26.6313]
[1725593941077,7.6075,131.45,131.42,19.0223]
[1725593941301,52.6084,131.44,131.39,19.8735274]
[1725593942004,52.6084,131.44,131.39,27.4842274]
[1725593943185,45.0,131.44,131.39,0.8472274]
[1725593943391,7.6097,131.41,131.39,0.8472274]
[1725593945078,7.6094,131.42,131.39,0.8472274]
[1725593945282,7.6096,131.42,131.39,0.8472274]
[1725593947102,23.3239,131.41,131.39,0.8472274]
[1725593947282,45.0,131.4,131.39,0.8472274]
[1725593948581,52.6103,131.4,131.39,0.8472274]
[1725593950192,15.7141,131.41,131.39,0.8472274]
[1725593950407,7.6092,131.42,131.39,0.8472274]
[1725593950912,7.6098,131.41,131.39,0.8472274]
[1725593951487,7.6091,131.42,131.39,0.8472274]
[1725593951691,7.6098,131.41,131.39,0.8472274]
[1725593953496,22.0467,131.44,131.39,0.8472274]
[1725593953727,65.0,131.43,131.39,0.8472274]
[1725593954291,7.6093,131.42,131.39,0.8472274]
[1725593955715,45.0,131.41,131.39,0.8472274]
[1725593956210,7.6093,131.42,131.39,0.8472274]
[1725593956414,45.0,131.41,131.39,0.8472274]
[1725593956912,52.6098,131.41,131.39,0.8472274]
[1725593957687,7.6103,131.4,131.39,0.8472274]
[1725593957985,52.6103,131.4,131.39,0.8472274]
[1725593970721,20.0,131.43,131.39,0.8472274]
[1725593970910,7.6093,131.42,131.39,0.8472274]
[1725593971233,57.0541,131.46,131.39,0.8472274]
[1725593971234,19.018,131.46,131.39,8.4580274]
[1725593972232,7.6091,131.43,131.39,0.8472274]
[1725593972411,45.0,131.42,131.39,0.8472274]
[1725593972610,7.6103,131.4,131.39,0.8472274]
[1725593972815,52.6103,131.4,131.39,0.8472274]
[1725593974809,45.0,131.4,131.39,0.8472274]
[1725593975607,7.6099,131.41,131.39,0.8472274]
[1725593976037,7.6092,131.42,131.39,0.8472274]
[1725593976815,7.6099,131.41,131.39,0.8472274]
[1725593981747,45.0,131.4,131.39,0.8472274]
[1725593984724,7.6099,131.41,131.39,0.8472274]
[1725593986029,34.5757,131.45,131.39,0.8472274]
[1725593986229,7.6088,131.43,131.39,0.8472274]
[1725593987348,7.6092,131.42,131.39,0.8472274]
[1725593987529,15.5567,131.45,131.35,25.6171]
[1725593987852,65.0,131.44,131.35,25.6171]
[1725593988428,7.6096,131.42,131.37,7.612]
[1725593988733,52.6098,131.41,131.37,7.612]
[1725593988923,52.6098,131.41,131.35,25.6171]
[1725593989127,52.6098,131.41,131.36,7.6123]
[1725593991646,20.0,131.44,131.37,19.0293]
[1725593992046,27.6081,131.44,131.39,7.6107]
[1725593992223,25.5927,131.47,131.37,19.0293]
[1725593992224,6.5762,131.47,131.37,16.0389]
[1725593992421,15.4253,131.49,131.42,7.6086]
[1725593992738,23.0307,131.49,131.44,7.6079]
[1725593992945,15.4253,131.49,131.43,19.0207]
[1725593993252,23.0292,131.52,131.46,7.6068]
[1725593993553,15.4253,131.52,131.46,7.6068]
[1725593993933,7.6046,131.5,131.44,7.6075]
[1725593995949,7.6051,131.49,131.44,7.6075]
[1725593996157,45.0,131.48,131.44,7.6075]
[1725594000346,7.6046,131.5,131.45,7.6073]
[1725594001057,7.6052,131.49,131.44,7.6079]
[1725594001253,52.6057,131.48,131.44,7.6079]
[1725594003248,45.0,131.48,131.44,7.6079]
[1725594003935,7.6048,131.5,131.45,7.6073]
[1725594004258,15.4253,131.52,131.45,19.0176]
[1725594004560,7.6044,131.51,131.46,7.6068]
[1725594004966,7.6044,131.51,131.47,7.6061]
[1725594005264,7.6028,131.53,131.48,7.6052]
[1725594005559,7.6035,131.52,131.48,7.6052]
[1725594005741,7.6029,131.53,131.48,7.6052]
[1725594006059,7.6029,131.53,131.49,7.605]
[1725594008156,7.6022,131.54,131.49,7.605]
[1725594008457,7.6022,131.54,131.5,7.6044]
[1725594013073,15.4396,131.58,131.48,16.1987]
[1725594013376,7.5994,131.59,131.54,7.6021]
[1725594013558,7.5999,131.58,131.54,7.6021]
[1725594015148,7.5999,131.58,131.53,19.0063]
[1725594016264,7.5999,131.58,131.53,26.6089]
[1725594016460,7.6007,131.57,131.53,19.0063]
[1725594020071,7.6011,131.56,131.53,19.0063]
[1725594020456,7.6011,131.56,131.51,7.6037]
[1725594023882,45.0,131.55,131.51,7.6037]
[1725594024681,7.6011,131.56,131.52,7.6033]
[1725594025281,45.0,131.55,131.51,7.6038]
[1725594028269,52.6018,131.55,131.51,7.6038]
[1725594035095,7.6012,131.56,131.52,7.6032]
[1725594041689,7.6006,131.57,131.53,7.6028]
[1725594045312,7.6006,131.57,131.52,26.6113]
[1725594046988,7.6006,131.57,131.53,7.6025]
[1725594047702,7.6006,131.57,131.52,26.6113]
[1725594051508,7.6015,131.56,131.52,19.0081]
[1725594052519,7.6015,131.56,131.51,7.6037]
[1725594052520,7.6017,131.55,131.51,7.6037]
[1725594055921,7.6017,131.55,131.5,7.6043]
[1725594056298,7.6017,131.55,131.51,7.6038]
[1725594057917,7.6011,131.56,131.52,7.6033]
[1725594062606,22.8197,131.57,131.53,7.6028]
[1725594062918,15.2191,131.57,131.53,7.6028]
[1725594063311,22.8196,131.57,131.53,7.6028]
[1725594064920,22.8196,131.57,131.52,7.6031]
[1725594065712,7.601,131.56,131.52,7.6031]
[1725594065926,7.6023,131.54,131.48,57.0397]
[1725594066139,7.6023,131.54,131.5,7.6045]
[1725594069308,7.603,131.53,131.48,19.0131]
[1725594069703,7.603,131.53,131.48,26.6183]
[1725594070521,7.6041,131.51,131.46,398.8068]
[1725594071421,23.9646,131.52,131.46,391.2]
[1725594071734,23.9646,131.52,131.47,7.6061]
[1725594073635,16.3611,131.52,131.47,19.0151]
[1725594073806,7.6026,131.54,131.49,7.6049]
[1725594078016,7.6028,131.53,131.49,7.6049]
[1725594083033,45.0,131.52,131.48,7.6055]
[1725594083227,52.6034,131.52,131.48,7.6055]
[1725594084634,52.6034,131.52,131.47,417.8212]
[1725594084831,7.604,131.51,131.47,417.8212]
[1725594085716,45.0,131.52,131.47,410.2151]
[1725594085931,45.0,131.52,131.48,7.6056]
[1725594085932,52.6034,131.52,131.48,7.6056]
[1725594088933,52.6034,131.52,131.47,26.6212]
[1725594089338,7.6029,131.53,131.47,19.0151]
[1725594089543,16.3611,131.55,131.51,7.6037]
[1725594089842,16.3611,131.55,131.5,7.6044]
[1725594089843,23.9628,131.55,131.5,7.6044]
[1725594090022,7.6023,131.54,131.5,7.6044]
[1725594093840,16.3611,131.55,131.51,7.6039]
[1725594094141,23.9628,131.55,131.51,7.6039]
[1725594096324,23.9628,131.55,131.5,7.6043]
[1725594101235,45.0,131.54,131.46,410.2165]
[1725594101440,20.0,131.53,131.46,410.2165]
[1725594101636,45.0,131.52,131.46,410.2165]
[1725594102225,15.6436,131.5,131.46,391.2]
[1725594102454,45.0,131.49,131.46,391.2]
[1725594102962,7.6059,131.48,131.46,391.2]
[1725594104453,45.0,131.49,131.46,391.2]
[1725594104454,52.6052,131.49,131.46,391.2]
[1725594107448,23.2482,131.5,131.46,391.2]
[1725594108262,23.2482,131.5,131.46,398.8068]
[1725594109258,7.6045,131.51,131.46,417.8239]
[1725594109456,7.6045,131.51,131.47,7.6062]
[1725594110762,15.6436,131.52,131.46,410.2171]
[1725594110977,15.6436,131.52,131.48,19.0138]
[1725594111268,13.7658,131.54,131.49,7.6046]
[1725594111449,7.6023,131.54,131.48,19.0138]
[1725594112465,23.2453,131.55,131.5,7.6043]
[1725594116043,7.6026,131.54,131.49,7.6047]
[1725594116674,7.6029,131.53,131.49,7.6047]
[1725594118069,7.6022,131.54,131.5,7.6043]
[1725594120365,7.6022,131.54,131.49,7.605]
[1725594120584,15.6436,131.55,131.48,19.0138]
[1725594120585,7.6038,131.52,131.48,19.0138]
[1725594121671,45.0,131.53,131.46,398.8067]
[1725594121672,7.6049,131.5,131.46,398.8067]
[1725594121879,7.6046,131.5,131.46,391.2]
[1725594122256,7.6046,131.5,131.46,398.8068]
[1725594125672,7.6041,131.51,131.46,398.8068]
[1725594125877,45.0,131.53,131.47,7.606]
[1725594126079,7.6035,131.52,131.48,7.6056]
[1725594126385,7.6035,131.52,131.47,7.6061]
[1725594126961,7.6035,131.52,131.48,7.6055]
[1725594137099,7.6026,131.54,131.49,9.1244444]
[1725594137470,7.6017,131.55,131.49,41.7874444]
[1725594137674,7.6017,131.55,131.51,7.6039]
[1725594137886,15.555,131.58,131.54,7.6018]
[1725594138079,15.555,131.58,131.49,21.2559]
[1725594138080,7.6003,131.58,131.53,26.6092]
[1725594140198,7.6011,131.56,131.5,19.0104]
[1725594141286,52.6006,131.57,131.52,7.6032]
[1725594142718,7.5993,131.59,131.52,19.0079]
[1725594143013,7.5988,131.6,131.56,7.601]
[1725594143890,7.5983,131.61,131.57,7.6005]
[1725594144287,7.5983,131.61,131.56,26.603]
[1725594145795,7.5988,131.6,131.56,26.603]
[1725594161247,15.555,131.62,131.57,7.6005]
[1725594162440,15.555,131.62,131.53,19.0059]
[1725594162743,45.0,131.61,131.53,19.0059]
[1725594162939,7.6005,131.57,131.53,26.6085]
[1725594163151,7.6006,131.57,131.53,19.0059]
[1725594164939,45.0,131.61,131.53,19.0059]
[1725594165127,45.0,131.61,131.54,1.51817827]
[1725594165317,45.0,131.61,131.55,9.11956286]
[1725594165718,34.5496,131.62,131.55,9.11956286]
[1725594165953,7.5992,131.6,131.55,9.11956286]
[1725594166124,7.5992,131.6,131.55,7.6015]
[1725594166447,34.5496,131.62,131.55,7.6015]
[1725594166448,7.5994,131.59,131.55,7.6015]
[1725594175680,7.5994,131.59,131.56,1.5183811]
[1725594181185,7.5994,131.59,131.55,7.6015]
[1725594181483,7.5994,131.59,131.54,7.602]
[1725594184189,15.555,131.62,131.55,19.0037]
[1725594184490,7.5983,131.61,131.57,7.6]
[1725594185960,7.5988,131.6,131.56,7.601]
[1725594186975,7.5994,131.59,131.55,19.0037]
[1725594188083,7.5994,131.59,131.55,26.6053]
[1725594194513,7.5994,131.59,131.55,19.0037]
[1725594196307,7.5994,131.59,131.52,413.1557]
[1725594196308,16.2146,131.6,131.52,432.1633]
[1725594196513,45.0,131.59,131.52,391.2]
[1725594196807,65.0,131.59,131.52,391.2]
[1725594197485,7.6017,131.55,131.52,391.2]
[1725594197899,63.9987,131.59,131.52,398.8033]
[1725594198105,45.0,131.59,131.52,391.2]
[1725594198317,7.6006,131.57,131.52,398.8032]
[1725594200912,7.6012,131.56,131.52,391.2]
[1725594202111,7.6018,131.55,131.52,391.2]
[1725594204201,7.6023,131.54,131.52,391.2]
[1725594207910,7.6017,131.55,131.52,391.2]
[1725594209407,7.6023,131.54,131.52,391.2]
[1725594216126,7.6023,131.54,131.5,7.6044]
[1725594222515,7.6029,131.53,131.49,29.0825]
[1725594223124,7.6029,131.53,131.49,7.6051]
[1725594223811,7.6024,131.54,131.5,7.6045]
[1725594224422,7.603,131.53,131.49,9.1247141]
[1725594224727,7.603,131.53,131.49,7.6049]
[1725594227924,45.0,131.52,131.46,22.4817]
[1725594228316,60.9233,131.52,131.45,19.0174]
[1725594228519,6.6306,131.51,131.42,41.5041]
[1725594228820,45.0,131.5,131.42,41.5041]
[1725594229027,7.6058,131.48,131.44,7.6077]
[1725594229206,7.6052,131.49,131.44,7.6077]
[1725594230617,52.6047,131.5,131.45,7.6074]
[1725594230819,7.6047,131.5,131.44,19.0193]
[1725594231510,7.6041,131.51,131.44,19.0193]
[1725594231731,7.6041,131.51,131.46,7.6067]
[1725594233609,7.6041,131.51,131.47,7.6062]
[1725594237632,7.6035,131.52,131.48,7.6056]
[1725594242525,7.6035,131.52,131.47,7.6062]
[1725594243716,7.6035,131.52,131.48,7.6057]
[1725594247733,15.2297,131.54,131.46,19.0166]
[1725594247914,7.6052,131.49,131.45,7.6073]
[1725594249717,7.6052,131.49,131.44,398.8079]
[1725594250943,7.6058,131.48,131.44,398.8079]
[1725594252234,7.6058,131.48,131.44,7.6079]
[1725594252845,7.6052,131.49,131.44,7.6079]
[1725594253344,7.6052,131.49,131.45,7.6073]
[1725594256941,7.606,131.48,131.43,19.0206]
[1725594257843,7.606,131.48,131.43,28.5533279]
[1725594258032,7.606,131.48,131.43,19.0206]
[1725594258242,7.606,131.48,131.43,36.1614279]
[1725594258433,7.606,131.48,131.43,26.6287]
[1725594259324,15.2297,131.5,131.42,9.5327279]
[1725594259637,45.0,131.49,131.41,9.5327279]
[1725594260346,7.6078,131.45,131.41,7.6096]
[1725594261960,15.3493,131.44,131.41,7.6096]
[1725594269267,22.9574,131.44,131.4,417.8349]
[1725594269454,7.6087,131.43,131.4,391.2]
[1725594272762,22.9574,131.44,131.4,398.8102]
[1725594273750,45.0,131.43,131.4,391.2]
[1725594275263,52.6087,131.43,131.4,391.2]
[1725594276269,45.0,131.43,131.4,391.2]
[1725594276853,7.6093,131.42,131.4,391.2]
[1725594277078,52.6087,131.43,131.4,391.2]
[1725594281745,52.6086,131.43,131.4,391.2]
[1725594281971,15.3493,131.44,131.4,391.2]
[1725594282156,22.9577,131.44,131.4,391.2]
[1725594283149,7.6087,131.43,131.4,391.2]
[1725594287175,15.3493,131.44,131.4,391.2]
[1725594287379,45.0,131.43,131.4,391.2]
[1725594288363,7.6097,131.41,131.4,391.2]
[1725594290385,7.6093,131.42,131.4,391.2]
[1725594299460,15.657,131.47,131.4,391.2]
[1725594299678,7.6075,131.45,131.4,398.8101]
[1725594299963,7.6075,131.45,131.4,7.6101]
[1725594300180,7.608,131.44,131.4,7.6101]
[1725594301686,7.6093,131.42,131.38,26.6395]
[1725594302187,7.6099,131.41,131.35,40.5658]
[1725594302377,7.6108,131.4,131.35,40.5658]
[1725594302688,7.6108,131.4,131.35,26.645]
[1725594302885,7.6108,131.4,131.36,7.6125]
[1725594303091,7.6099,131.41,131.35,19.032]
[1725594303593,15.657,131.42,131.35,19.032]
[1725594303594,7.6104,131.4,131.36,7.6125]
[1725594303773,7.6109,131.39,131.35,26.6451]
[1725594303969,7.6109,131.39,131.35,19.032]
[1725594304164,15.657,131.42,131.35,26.645]
[1725594304165,7.6107,131.4,131.35,26.645]
[1725594304371,45.0,131.39,131.35,26.645]
[1725594304791,7.6107,131.4,131.36,7.6125]
[1725594304976,7.6099,131.41,131.35,19.032]
[1725594305174,45.0,131.4,131.36,7.6125]
[1725594305570,7.6099,131.41,131.36,7.6125]
[1725594306384,7.6099,131.41,131.37,7.6119]
[1725594306580,7.6092,131.42,131.38,7.6114]
[1725594306779,7.6086,131.43,131.38,7.6114]
[1725594307472,7.6086,131.43,131.39,7.6108]
[1725594309203,7.6081,131.44,131.39,7.6108]
[1725594309491,45.0,131.43,131.39,7.6108]